[Event "Late-Titled-Tuesday-Blitz-November-28-2023"]
[Site "Chess.com"]
[Date "2023.11.28"]
[Round "10"]
[White "MaxLeto"]
[Black "YellowJacek"]
[Result "0-1"]
[WhiteElo "2514"]
[BlackElo "2359"]
[TimeControl "180+1"]
[EndTime "15:51:54 PST"]
[Termination "YellowJacek won on time"]

1. g4 {[%clk 0:03:00.9]} 1... e5 {[%clk 0:02:58.9]} 2. Bg2 {[%clk 0:03:00.6]}
2... h5 {[%clk 0:02:59.8]} 3. gxh5 {[%clk 0:02:59.9]} 3... Nf6 {[%clk
0:02:59.4]} 4. c4 {[%clk 0:02:59.4]} 4... c6 {[%clk 0:02:58.9]} 5. Nc3 {[%clk
0:02:58.9]} 5... Bc5 {[%clk 0:02:47.2]} 6. e3 {[%clk 0:02:53.5]} 6... d6 {[%clk
0:02:39.8]} 7. d4 {[%clk 0:02:50]} 7... exd4 {[%clk 0:02:38.1]} 8. exd4 {[%clk
0:02:49.6]} 8... Bb6 {[%clk 0:02:37.8]} 9. Bf3 {[%clk 0:02:10.7]} 9... Qe7+
{[%clk 0:02:31.7]} 10. Be3 {[%clk 0:02:09.7]} 10... Be6 {[%clk 0:02:14.3]} 11.
Qe2 {[%clk 0:02:08.3]} 11... Nbd7 {[%clk 0:02:09.9]} 12. O-O-O {[%clk 0:02:07]}
12... O-O-O {[%clk 0:02:09.9]} 13. h4 {[%clk 0:02:07.6]} 13... Bf5 {[%clk
0:02:04.7]} 14. Nh3 {[%clk 0:02:03.8]} 14... Kb8 {[%clk 0:01:47.6]} 15. Ng5
{[%clk 0:01:55.8]} 15... Ka8 {[%clk 0:01:43.6]} 16. Rhe1 {[%clk 0:01:51.4]}
16... Rde8 {[%clk 0:01:42.4]} 17. Bf4 {[%clk 0:01:46.6]} 17... Qf8 {[%clk
0:01:42.4]} 18. Qd2 {[%clk 0:01:33.8]} 18... Nxh5 {[%clk 0:01:38.1]} 19. Rxe8+
{[%clk 0:01:25.9]} 19... Qxe8 {[%clk 0:01:37.7]} 20. Bxd6 {[%clk 0:01:22]} 20...
Nhf6 {[%clk 0:01:27.4]} 21. c5 {[%clk 0:01:18.1]} 21... Ba5 {[%clk 0:01:24]} 22.
Qf4 {[%clk 0:01:01.6]} 22... Bxc3 {[%clk 0:01:19.3]} 23. Qxf5 {[%clk 0:00:49.2]}
23... Ba5 {[%clk 0:01:19.1]} 24. Bg3 {[%clk 0:00:34.6]} 24... Qe7 {[%clk
0:01:08.1]} 25. Ne4 {[%clk 0:00:28]} 25... Nxe4 {[%clk 0:01:04.7]} 26. Qxe4
{[%clk 0:00:21.7]} 26... Qf6 {[%clk 0:01:00.4]} 27. a3 {[%clk 0:00:17.2]} 27...
Qh6+ {[%clk 0:00:53]} 28. Kc2 {[%clk 0:00:16.4]} 28... Rc8 {[%clk 0:00:44.3]}
29. b4 {[%clk 0:00:14.6]} 29... Bd8 {[%clk 0:00:43.4]} 30. d5 {[%clk 0:00:12.9]}
30... Nf6 {[%clk 0:00:41.6]} 31. Qe3 {[%clk 0:00:02.5]} 31... Qg6+ {[%clk
0:00:39]} 32. Qd3 {[%clk 0:00:02.2]} 32... Qh6 {[%clk 0:00:28.4]} 33. dxc6
{[%clk 0:00:01.9]} 33... bxc6 {[%clk 0:00:23]} 34. Qxd8 {[%clk 0:00:02.3]} 34...
Qg6+ {[%clk 0:00:19.1]} 35. Qd3 {[%clk 0:00:02.2]} 35... Kb7 {[%clk 0:00:17.5]}
36. Qxg6 {[%clk 0:00:01.6]} 36... fxg6 {[%clk 0:00:18.4]} 37. Be5 {[%clk
0:00:01.3]} 37... Nh5 {[%clk 0:00:16.4]} 0-1

[Event "Late-Titled-Tuesday-Blitz-November-28-2023"]
[Site "Chess.com"]
[Date "2023.11.28"]
[Round "10"]
[White "DanylaBagrov"]
[Black "DamianoLew95"]
[Result "0-1"]
[WhiteElo "2593"]
[BlackElo "2740"]
[TimeControl "180+1"]
[EndTime "15:51:56 PST"]
[Termination "DamianoLew95 won by resignation"]

1. Nf3 {[%clk 0:03:00.9]} 1... Nf6 {[%clk 0:02:56.4]} 2. c4 {[%clk 0:03:01.4]}
2... g6 {[%clk 0:02:56.5]} 3. g3 {[%clk 0:02:47.9]} 3... Bg7 {[%clk 0:02:56.4]}
4. Bg2 {[%clk 0:02:47.6]} 4... O-O {[%clk 0:02:56.4]} 5. O-O {[%clk 0:02:47.3]}
5... c6 {[%clk 0:02:56.3]} 6. b3 {[%clk 0:02:41.5]} 6... d5 {[%clk 0:02:54.5]}
7. Bb2 {[%clk 0:02:39.8]} 7... Bg4 {[%clk 0:02:53]} 8. Ne5 {[%clk 0:02:36.6]}
8... Be6 {[%clk 0:02:52.8]} 9. Qc2 {[%clk 0:02:30]} 9... Nbd7 {[%clk 0:02:47.4]}
10. d3 {[%clk 0:02:24.7]} 10... Nxe5 {[%clk 0:02:44]} 11. Bxe5 {[%clk
0:02:24.5]} 11... Qd7 {[%clk 0:02:39.7]} 12. Rd1 {[%clk 0:02:19.4]} 12... Rfd8
{[%clk 0:02:36.5]} 13. Nc3 {[%clk 0:02:14]} 13... Bh3 {[%clk 0:02:24.6]} 14. Bh1
{[%clk 0:02:10.9]} 14... e6 {[%clk 0:02:24.3]} 15. Qb2 {[%clk 0:02:04]} 15...
Ne8 {[%clk 0:02:21.6]} 16. Bxg7 {[%clk 0:02:02.3]} 16... Nxg7 {[%clk 0:02:22.5]}
17. b4 {[%clk 0:01:53.5]} 17... Nf5 {[%clk 0:02:12.5]} 18. e4 {[%clk 0:01:22.8]}
18... Ne7 {[%clk 0:01:57.1]} 19. Qe2 {[%clk 0:01:05.8]} 19... d4 {[%clk
0:01:53]} 20. Na4 {[%clk 0:01:03.1]} 20... e5 {[%clk 0:01:39.2]} 21. Nc5 {[%clk
0:01:00.1]} 21... Qc8 {[%clk 0:01:38.6]} 22. a4 {[%clk 0:00:55.4]} 22... h5
{[%clk 0:01:25.6]} 23. Bg2 {[%clk 0:00:41.5]} 23... b6 {[%clk 0:01:04]} 24. Nb3
{[%clk 0:00:36.8]} 24... Kg7 {[%clk 0:01:03.9]} 25. a5 {[%clk 0:00:34]} 25... h4
{[%clk 0:00:59.9]} 26. Bxh3 {[%clk 0:00:25]} 26... Qxh3 {[%clk 0:01:00.8]} 27.
Qf3 {[%clk 0:00:24.6]} 27... Rh8 {[%clk 0:00:51.3]} 28. Qg2 {[%clk 0:00:23.7]}
28... hxg3 {[%clk 0:00:50.8]} 29. fxg3 {[%clk 0:00:18.2]} 29... Qe6 {[%clk
0:00:34.4]} 30. Rf1 {[%clk 0:00:17.4]} 30... Rab8 {[%clk 0:00:31.3]} 31. Rf3
{[%clk 0:00:16.7]} 31... bxa5 {[%clk 0:00:30.1]} 32. Nc5 {[%clk 0:00:16.1]}
32... Qd6 {[%clk 0:00:25.2]} 33. Raf1 {[%clk 0:00:14.2]} 33... Rhf8 {[%clk
0:00:23.1]} 34. Qf2 {[%clk 0:00:12.4]} 34... f6 {[%clk 0:00:23.4]} 35. Na6
{[%clk 0:00:08]} 35... Rbc8 {[%clk 0:00:19.7]} 36. c5 {[%clk 0:00:04.7]} 36...
Qe6 {[%clk 0:00:18]} 37. Qa2 {[%clk 0:00:05.1]} 37... Qxa2 {[%clk 0:00:16.3]}
38. R3f2 {[%clk 0:00:04.4]} 38... Qe6 {[%clk 0:00:14.8]} 0-1

[Event "Late-Titled-Tuesday-Blitz-November-28-2023"]
[Site "Chess.com"]
[Date "2023.11.28"]
[Round "10"]
[White "Sulthankan"]
[Black "melissa_guez"]
[Result "1-0"]
[WhiteElo "2384"]
[BlackElo "2247"]
[TimeControl "180+1"]
[EndTime "15:51:58 PST"]
[Termination "Sulthankan won by resignation"]

1. d4 {[%clk 0:01:35]} 1... d5 {[%clk 0:02:58.7]} 2. c4 {[%clk 0:01:33.9]} 2...
c6 {[%clk 0:02:58.3]} 3. Nc3 {[%clk 0:01:33.3]} 3... Nf6 {[%clk 0:02:57.4]} 4.
e3 {[%clk 0:01:33.7]} 4... e6 {[%clk 0:02:55.6]} 5. Nf3 {[%clk 0:01:32.9]} 5...
Nbd7 {[%clk 0:02:54.3]} 6. Qc2 {[%clk 0:01:31.7]} 6... Bd6 {[%clk 0:02:52.6]} 7.
Bd3 {[%clk 0:01:31.6]} 7... dxc4 {[%clk 0:02:52.5]} 8. Bxc4 {[%clk 0:01:32.5]}
8... b5 {[%clk 0:02:52.8]} 9. Be2 {[%clk 0:01:32.3]} 9... O-O {[%clk 0:02:53.4]}
10. O-O {[%clk 0:01:32.7]} 10... Bb7 {[%clk 0:02:52.4]} 11. e4 {[%clk
0:01:33.1]} 11... e5 {[%clk 0:02:51.7]} 12. dxe5 {[%clk 0:01:32.7]} 12... Nxe5
{[%clk 0:02:51.9]} 13. Nd4 {[%clk 0:01:33.4]} 13... Ng6 {[%clk 0:02:15.4]} 14.
Nf5 {[%clk 0:01:25]} 14... Bf4 {[%clk 0:02:05.5]} 15. Rd1 {[%clk 0:01:18.1]}
15... Qb6 {[%clk 0:02:02.8]} 16. Ne7+ {[%clk 0:01:06.3]} 16... Nxe7 {[%clk
0:02:02.3]} 17. Bxf4 {[%clk 0:01:06.2]} 17... Ng6 {[%clk 0:01:56.9]} 18. Bg5
{[%clk 0:01:00.1]} 18... c5 {[%clk 0:01:40.5]} 19. Bxf6 {[%clk 0:00:34.5]} 19...
Qxf6 {[%clk 0:01:41.4]} 20. Bxb5 {[%clk 0:00:34.9]} 20... a6 {[%clk 0:01:35]}
21. Bc4 {[%clk 0:00:33.8]} 21... Bc6 {[%clk 0:01:32.6]} 22. Rd2 {[%clk
0:00:23.3]} 22... Ne5 {[%clk 0:01:32.3]} 23. Bd5 {[%clk 0:00:22.2]} 23... Rad8
{[%clk 0:01:27.5]} 24. Rad1 {[%clk 0:00:20.5]} 24... Bb5 {[%clk 0:01:19.1]} 25.
a4 {[%clk 0:00:18.8]} 25... Bc4 {[%clk 0:01:16]} 26. b3 {[%clk 0:00:18]} 26...
Bd3 {[%clk 0:01:06.6]} 27. Rxd3 {[%clk 0:00:17.8]} 27... Nxd3 {[%clk 0:01:07.5]}
28. Rxd3 {[%clk 0:00:17.5]} 28... g6 {[%clk 0:01:05.5]} 29. g3 {[%clk
0:00:15.7]} 29... Kg7 {[%clk 0:01:05.4]} 30. Kg2 {[%clk 0:00:16.2]} 30... Rfe8
{[%clk 0:01:05.3]} 31. f4 {[%clk 0:00:16.8]} 31... Qb6 {[%clk 0:01:04]} 32. Qd2
{[%clk 0:00:15.8]} 32... Qb4 {[%clk 0:01:03]} 33. Bc4 {[%clk 0:00:15.7]} 33...
Rxd3 {[%clk 0:01:00]} 34. Qxd3 {[%clk 0:00:16.2]} 34... Qa3 {[%clk 0:01:00.4]}
35. h4 {[%clk 0:00:15.3]} 35... Qb2+ {[%clk 0:01:00.5]} 36. Kh3 {[%clk
0:00:13.9]} 36... Qc1 {[%clk 0:01:00.8]} 37. Kg2 {[%clk 0:00:10.4]} 37... Qb2+
{[%clk 0:00:57.9]} 38. Kf3 {[%clk 0:00:10.5]} 38... h5 {[%clk 0:00:57.2]} 39.
Ne2 {[%clk 0:00:08.6]} 39... Qf6 {[%clk 0:00:55.8]} 40. Qd5 {[%clk 0:00:08.4]}
40... Rd8 {[%clk 0:00:56.1]} 41. Qe5 {[%clk 0:00:07.5]} 41... Qxe5 {[%clk
0:00:56]} 42. fxe5 {[%clk 0:00:08.4]} 42... Rd2 {[%clk 0:00:55.9]} 43. Ke3
{[%clk 0:00:08.1]} 43... Rd8 {[%clk 0:00:55.4]} 44. Bxa6 {[%clk 0:00:08]} 44...
Re8 {[%clk 0:00:55.2]} 45. Kf4 {[%clk 0:00:08.5]} 45... Rb8 {[%clk 0:00:55.2]}
46. Bc4 {[%clk 0:00:08.8]} 46... Re8 {[%clk 0:00:55]} 47. Nc3 {[%clk 0:00:09.1]}
47... Rd8 {[%clk 0:00:55.3]} 48. Nd5 {[%clk 0:00:09.7]} 48... Rb8 {[%clk
0:00:55]} 49. a5 {[%clk 0:00:09.9]} 49... Ra8 {[%clk 0:00:55.5]} 50. a6 {[%clk
0:00:10.6]} 50... Ra7 {[%clk 0:00:55.8]} 51. Nb6 {[%clk 0:00:10.7]} 51... f6
{[%clk 0:00:55.4]} 52. exf6+ {[%clk 0:00:10.5]} 52... Kxf6 {[%clk 0:00:56.3]}
53. e5+ {[%clk 0:00:11]} 53... Ke7 {[%clk 0:00:56.4]} 54. Na4 {[%clk 0:00:11.9]}
54... Ke8 {[%clk 0:00:53.3]} 55. Nxc5 {[%clk 0:00:12.1]} 55... Re7 {[%clk
0:00:53.5]} 56. Nb7 {[%clk 0:00:11.2]} 1-0

[Event "Late-Titled-Tuesday-Blitz-November-28-2023"]
[Site "Chess.com"]
[Date "2023.11.28"]
[Round "10"]
[White "Andrei_Skvortsov"]
[Black "Njal28"]
[Result "0-1"]
[WhiteElo "2783"]
[BlackElo "3016"]
[TimeControl "180+1"]
[EndTime "15:51:59 PST"]
[Termination "Njal28 won by resignation"]

1. e4 {[%clk 0:03:00.9]} 1... e5 {[%clk 0:02:59.6]} 2. d4 {[%clk 0:03:01.2]}
2... exd4 {[%clk 0:02:59.8]} 3. Qxd4 {[%clk 0:03:02.1]} 3... Nc6 {[%clk
0:03:00.1]} 4. Qd3 {[%clk 0:03:03]} 4... Nf6 {[%clk 0:02:59.1]} 5. Nc3 {[%clk
0:03:03.3]} 5... Bb4 {[%clk 0:02:56.2]} 6. Bd2 {[%clk 0:03:03.5]} 6... O-O
{[%clk 0:02:56.1]} 7. O-O-O {[%clk 0:03:04.1]} 7... d6 {[%clk 0:02:56.4]} 8.
Nge2 {[%clk 0:03:03]} 8... a5 {[%clk 0:02:54.8]} 9. Bg5 {[%clk 0:03:01.9]} 9...
h6 {[%clk 0:02:52.9]} 10. Bh4 {[%clk 0:02:54.5]} 10... Ne5 {[%clk 0:02:43.9]}
11. Qd4 {[%clk 0:02:31.6]} 11... Bc5 {[%clk 0:01:52.9]} 12. Qd2 {[%clk
0:02:22.6]} 12... c6 {[%clk 0:01:44.5]} 13. Nd4 {[%clk 0:01:33.5]} 13... Ng6
{[%clk 0:01:36.4]} 14. Bg3 {[%clk 0:01:29.2]} 14... a4 {[%clk 0:01:36.3]} 15.
Nf5 {[%clk 0:01:16]} 15... a3 {[%clk 0:01:33.1]} 16. b3 {[%clk 0:01:13.1]} 16...
d5 {[%clk 0:01:19]} 17. f3 {[%clk 0:00:40.4]} 17... Re8 {[%clk 0:01:18.7]} 18.
Nh4 {[%clk 0:00:27.6]} 18... Nf8 {[%clk 0:01:02.6]} 19. Qd3 {[%clk 0:00:20.7]}
19... Qa5 {[%clk 0:00:53.5]} 20. e5 {[%clk 0:00:20]} 20... N6d7 {[%clk
0:00:43.5]} 21. f4 {[%clk 0:00:19.1]} 21... Bb4 {[%clk 0:00:44.2]} 22. Nb1
{[%clk 0:00:18.6]} 22... Nc5 {[%clk 0:00:43.6]} 23. Qf3 {[%clk 0:00:17]} 23...
Ne4 {[%clk 0:00:41]} 24. Bd3 {[%clk 0:00:14.5]} 24... Bc3 {[%clk 0:00:40.6]} 25.
Nxc3 {[%clk 0:00:11.2]} 25... Qxc3 {[%clk 0:00:41.5]} 26. Bxe4 {[%clk
0:00:11.5]} 26... Qb2+ {[%clk 0:00:41.9]} 27. Kd2 {[%clk 0:00:12]} 27... dxe4
{[%clk 0:00:42.8]} 28. Qxe4 {[%clk 0:00:10.2]} 28... Bg4 {[%clk 0:00:42.1]} 29.
Nf3 {[%clk 0:00:09.8]} 29... Ne6 {[%clk 0:00:30.5]} 30. Rb1 {[%clk 0:00:05.5]}
30... Rad8+ {[%clk 0:00:26.1]} 31. Ke2 {[%clk 0:00:05.9]} 31... Qc3 {[%clk
0:00:26.4]} 32. Rhd1 {[%clk 0:00:03.8]} 32... Rd4 {[%clk 0:00:18.9]} 33. Qe3
{[%clk 0:00:03.2]} 33... Qxc2+ {[%clk 0:00:16.7]} 34. Ke1 {[%clk 0:00:03.6]}
34... Rxd1+ {[%clk 0:00:15.3]} 35. Rxd1 {[%clk 0:00:04.5]} 35... Qxg2 {[%clk
0:00:16]} 36. Rd3 {[%clk 0:00:03]} 36... Qxa2 {[%clk 0:00:15.2]} 37. Nd2 {[%clk
0:00:02.5]} 37... Qa1+ {[%clk 0:00:14.9]} 38. Kf2 {[%clk 0:00:02.9]} 38... a2
{[%clk 0:00:15.4]} 39. b4 {[%clk 0:00:02.7]} 39... Qb2 {[%clk 0:00:15]} 40. Rb3
{[%clk 0:00:02.5]} 40... a1=Q {[%clk 0:00:15.5]} 0-1

[Event "Late-Titled-Tuesday-Blitz-November-28-2023"]
[Site "Chess.com"]
[Date "2023.11.28"]
[Round "10"]
[White "karinachess1"]
[Black "Rodalquilar"]
[Result "0-1"]
[WhiteElo "2621"]
[BlackElo "2757"]
[TimeControl "180+1"]
[EndTime "15:52:00 PST"]
[Termination "Rodalquilar won on time"]

1. d4 {[%clk 0:03:00.9]} 1... d5 {[%clk 0:03:00.1]} 2. c4 {[%clk 0:03:00.9]}
2... e6 {[%clk 0:03:00.2]} 3. Nc3 {[%clk 0:03:00.7]} 3... a6 {[%clk 0:03:00.4]}
4. cxd5 {[%clk 0:02:55.1]} 4... exd5 {[%clk 0:03:01.3]} 5. Bf4 {[%clk
0:02:54.8]} 5... Nf6 {[%clk 0:03:00.7]} 6. e3 {[%clk 0:02:54.7]} 6... c5 {[%clk
0:03:01.2]} 7. Nf3 {[%clk 0:02:51.7]} 7... c4 {[%clk 0:03:01.7]} 8. Be2 {[%clk
0:02:44]} 8... b5 {[%clk 0:03:01.9]} 9. O-O {[%clk 0:02:44.1]} 9... Bb7 {[%clk
0:03:01]} 10. Ne5 {[%clk 0:02:43.5]} 10... Be7 {[%clk 0:03:00.6]} 11. Bf3 {[%clk
0:02:40.3]} 11... Nbd7 {[%clk 0:02:59.6]} 12. a3 {[%clk 0:02:32.8]} 12... O-O
{[%clk 0:02:59.4]} 13. Qc2 {[%clk 0:02:33]} 13... Re8 {[%clk 0:02:58.5]} 14.
Rad1 {[%clk 0:02:29.3]} 14... Nb6 {[%clk 0:02:58.1]} 15. Rfe1 {[%clk 0:02:19.4]}
15... Bf8 {[%clk 0:02:31.5]} 16. h3 {[%clk 0:02:17.2]} 16... Ne4 {[%clk
0:02:31]} 17. Ng4 {[%clk 0:00:27.2]} 17... f6 {[%clk 0:02:03.9]} 18. Nh2 {[%clk
0:00:25.3]} 18... Qd7 {[%clk 0:01:45.5]} 19. Nf1 {[%clk 0:00:25.2]} 19... Bc6
{[%clk 0:01:42.6]} 20. Bh2 {[%clk 0:00:24.8]} 20... a5 {[%clk 0:01:39.6]} 21.
Ng3 {[%clk 0:00:24.9]} 21... Nxg3 {[%clk 0:01:21.4]} 22. Bxg3 {[%clk 0:00:25.8]}
22... b4 {[%clk 0:01:21.9]} 23. axb4 {[%clk 0:00:26.5]} 23... axb4 {[%clk
0:01:22.4]} 24. Ne2 {[%clk 0:00:25.7]} 24... Ba4 {[%clk 0:01:22.1]} 25. Qd2
{[%clk 0:00:26.4]} 25... Bxd1 {[%clk 0:01:21.7]} 26. Rxd1 {[%clk 0:00:27.3]}
26... Ra2 {[%clk 0:01:16.6]} 27. Qc1 {[%clk 0:00:27.7]} 27... Rea8 {[%clk
0:01:14.6]} 28. Nf4 {[%clk 0:00:27.5]} 28... R8a5 {[%clk 0:01:00.8]} 29. e4
{[%clk 0:00:26.8]} 29... dxe4 {[%clk 0:00:42.4]} 30. Bxe4 {[%clk 0:00:27.7]}
30... Bd6 {[%clk 0:00:39.7]} 31. Qc2 {[%clk 0:00:25.9]} 31... f5 {[%clk
0:00:37.7]} 32. Bf3 {[%clk 0:00:23.2]} 32... Qa4 {[%clk 0:00:27.9]} 33. Qe2
{[%clk 0:00:22.8]} 33... Qd7 {[%clk 0:00:24]} 34. Re1 {[%clk 0:00:22.2]} 34...
c3 {[%clk 0:00:20.6]} 35. Bc6 {[%clk 0:00:14.8]} 35... Qe7 {[%clk 0:00:12.2]}
36. Qxe7 {[%clk 0:00:06.1]} 36... Bxe7 {[%clk 0:00:12.5]} 37. Rxe7 {[%clk
0:00:02.5]} 37... cxb2 {[%clk 0:00:12.9]} 0-1

[Event "Late-Titled-Tuesday-Blitz-November-28-2023"]
[Site "Chess.com"]
[Date "2023.11.28"]
[Round "10"]
[White "NateSolon"]
[Black "FaustinoOro"]
[Result "1-0"]
[WhiteElo "2691"]
[BlackElo "2832"]
[TimeControl "180+1"]
[EndTime "15:52:07 PST"]
[Termination "NateSolon won on time"]

1. d4 {[%clk 0:03:00.9]} 1... Nf6 {[%clk 0:02:59.8]} 2. Bf4 {[%clk 0:03:00.8]}
2... d5 {[%clk 0:02:56.6]} 3. e3 {[%clk 0:03:00.7]} 3... Bf5 {[%clk 0:02:56.2]}
4. Bd3 {[%clk 0:03:00.2]} 4... Bxd3 {[%clk 0:02:55.9]} 5. cxd3 {[%clk
0:03:01.1]} 5... c6 {[%clk 0:02:52.9]} 6. Nc3 {[%clk 0:03:00.9]} 6... e6 {[%clk
0:02:53]} 7. Nf3 {[%clk 0:02:57.1]} 7... Be7 {[%clk 0:02:49.8]} 8. O-O {[%clk
0:02:51.1]} 8... O-O {[%clk 0:02:49.6]} 9. Rb1 {[%clk 0:02:50.9]} 9... a5 {[%clk
0:02:40.5]} 10. a3 {[%clk 0:02:50.2]} 10... Nbd7 {[%clk 0:02:33.2]} 11. h3
{[%clk 0:02:47.4]} 11... h6 {[%clk 0:02:30.1]} 12. Qc2 {[%clk 0:02:42.7]} 12...
c5 {[%clk 0:02:24.7]} 13. dxc5 {[%clk 0:02:27.8]} 13... Bxc5 {[%clk 0:02:25.6]}
14. d4 {[%clk 0:02:24.7]} 14... Be7 {[%clk 0:02:22.6]} 15. Nb5 {[%clk
0:02:23.9]} 15... Qb6 {[%clk 0:02:13.8]} 16. a4 {[%clk 0:02:22.8]} 16... Rac8
{[%clk 0:02:10.7]} 17. Qd3 {[%clk 0:02:18.2]} 17... Nb8 {[%clk 0:01:54]} 18.
Bxb8 {[%clk 0:02:06.9]} 18... Rxb8 {[%clk 0:01:54.1]} 19. Rfc1 {[%clk
0:02:02.4]} 19... Rbc8 {[%clk 0:01:53.7]} 20. Rc2 {[%clk 0:01:56.6]} 20... Nd7
{[%clk 0:01:38.3]} 21. Rbc1 {[%clk 0:01:52.1]} 21... Rc6 {[%clk 0:01:38.4]} 22.
e4 {[%clk 0:01:14.6]} 22... Nf6 {[%clk 0:01:18.4]} 23. e5 {[%clk 0:00:59.7]}
23... Nd7 {[%clk 0:01:16.7]} 24. Rf1 {[%clk 0:00:50.3]} 24... Rfc8 {[%clk
0:01:14.3]} 25. Re2 {[%clk 0:00:47]} 25... f6 {[%clk 0:01:03.3]} 26. exf6 {[%clk
0:00:43.4]} 26... Bxf6 {[%clk 0:01:02.1]} 27. Rfe1 {[%clk 0:00:41]} 27... Rf8
{[%clk 0:00:47.7]} 28. Qg6 {[%clk 0:00:36.6]} 28... Rf7 {[%clk 0:00:36.9]} 29.
Qg4 {[%clk 0:00:36]} 29... Nf8 {[%clk 0:00:34.8]} 30. h4 {[%clk 0:00:36.1]}
30... Rc4 {[%clk 0:00:32.5]} 31. b3 {[%clk 0:00:35.4]} 31... Rb4 {[%clk
0:00:32.8]} 32. Re3 {[%clk 0:00:30.9]} 32... Qd8 {[%clk 0:00:26.1]} 33. g3
{[%clk 0:00:29.3]} 33... Qb6 {[%clk 0:00:16.2]} 34. Kg2 {[%clk 0:00:29]} 34...
Qc6 {[%clk 0:00:11.4]} 35. Rc3 {[%clk 0:00:20.4]} 35... Qb6 {[%clk 0:00:07.1]}
36. Rc8 {[%clk 0:00:20.2]} 36... Re7 {[%clk 0:00:04.9]} 37. Qf4 {[%clk
0:00:15.9]} 37... Rxb3 {[%clk 0:00:02.2]} 38. Ne5 {[%clk 0:00:13.7]} 38... Rb4
{[%clk 0:00:01.2]} 39. Ng6 {[%clk 0:00:07.2]} 39... Rf7 {[%clk 0:00:01.9]} 40.
Qb8 {[%clk 0:00:07.1]} 1-0

[Event "Late-Titled-Tuesday-Blitz-November-28-2023"]
[Site "Chess.com"]
[Date "2023.11.28"]
[Round "10"]
[White "AryanTari"]
[Black "Grischuk"]
[Result "1-0"]
[WhiteElo "2992"]
[BlackElo "3066"]
[TimeControl "180+1"]
[EndTime "15:52:15 PST"]
[Termination "AryanTari won by checkmate"]

1. e4 {[%clk 0:03:00.9]} 1... c5 {[%clk 0:03:00]} 2. Nf3 {[%clk 0:03:00.7]} 2...
d6 {[%clk 0:03:00.4]} 3. Nc3 {[%clk 0:02:53.9]} 3... Nf6 {[%clk 0:03:00]} 4. e5
{[%clk 0:02:54.4]} 4... dxe5 {[%clk 0:03:00.9]} 5. Nxe5 {[%clk 0:02:55]} 5... a6
{[%clk 0:03:00.9]} 6. g3 {[%clk 0:02:55.1]} 6... Qd6 {[%clk 0:02:54.8]} 7. Nf3
{[%clk 0:02:54.9]} 7... Nc6 {[%clk 0:02:53.7]} 8. Bg2 {[%clk 0:02:54.4]} 8...
Bf5 {[%clk 0:02:24.4]} 9. d3 {[%clk 0:02:52.9]} 9... e6 {[%clk 0:02:23.3]} 10.
O-O {[%clk 0:02:41.6]} 10... Qd7 {[%clk 0:02:11]} 11. Re1 {[%clk 0:02:20.8]}
11... Rd8 {[%clk 0:02:07.1]} 12. h3 {[%clk 0:02:05.2]} 12... h6 {[%clk
0:02:06.1]} 13. Bf4 {[%clk 0:02:04.6]} 13... Bd6 {[%clk 0:02:03.6]} 14. Ne5
{[%clk 0:02:04.5]} 14... Nxe5 {[%clk 0:01:58]} 15. Bxe5 {[%clk 0:02:05.4]} 15...
Bxe5 {[%clk 0:01:56.7]} 16. Rxe5 {[%clk 0:02:06.3]} 16... Qc7 {[%clk 0:01:52.1]}
17. Qe2 {[%clk 0:02:01.6]} 17... O-O {[%clk 0:01:51.8]} 18. a4 {[%clk
0:01:52.3]} 18... b6 {[%clk 0:01:48.1]} 19. Re1 {[%clk 0:01:46.8]} 19... Bg6
{[%clk 0:01:43.1]} 20. b3 {[%clk 0:01:43.2]} 20... Nd7 {[%clk 0:01:31.1]} 21.
Re3 {[%clk 0:01:43]} 21... Nb8 {[%clk 0:01:31.3]} 22. Qf3 {[%clk 0:01:41]} 22...
Rc8 {[%clk 0:01:27]} 23. Ne2 {[%clk 0:01:26.3]} 23... Nc6 {[%clk 0:01:24.1]} 24.
Nf4 {[%clk 0:01:26.3]} 24... Nd4 {[%clk 0:01:19.1]} 25. Qd1 {[%clk 0:01:26.3]}
25... Bh7 {[%clk 0:01:16.4]} 26. Nh5 {[%clk 0:01:21.5]} 26... Rfd8 {[%clk
0:01:06.4]} 27. h4 {[%clk 0:01:13.9]} 27... Bg6 {[%clk 0:01:01.5]} 28. Nf4
{[%clk 0:01:13.9]} 28... Bf5 {[%clk 0:01:02.2]} 29. Re5 {[%clk 0:01:05.4]} 29...
Qd6 {[%clk 0:00:57.4]} 30. R5e3 {[%clk 0:00:52.7]} 30... b5 {[%clk 0:00:55.1]}
31. axb5 {[%clk 0:00:51.1]} 31... axb5 {[%clk 0:00:56]} 32. Be4 {[%clk
0:00:19.5]} 32... e5 {[%clk 0:00:45]} 33. Nd5 {[%clk 0:00:11.9]} 33... Be6
{[%clk 0:00:40.1]} 34. c4 {[%clk 0:00:11.2]} 34... b4 {[%clk 0:00:34.4]} 35. Bg2
{[%clk 0:00:11.3]} 35... f6 {[%clk 0:00:25.2]} 36. f4 {[%clk 0:00:10.7]} 36...
exf4 {[%clk 0:00:26.1]} 37. Nxf4 {[%clk 0:00:09.9]} 37... Bf7 {[%clk 0:00:19.7]}
38. Re7 {[%clk 0:00:09.8]} 38... Re8 {[%clk 0:00:17.9]} 39. Rxf7 {[%clk
0:00:08.6]} 39... Rxe1+ {[%clk 0:00:03.7]} 40. Qxe1 {[%clk 0:00:09.5]} 40... Qe5
{[%clk 0:00:04.5]} 41. Qxe5 {[%clk 0:00:08.1]} 41... fxe5 {[%clk 0:00:04.8]} 42.
Bd5 {[%clk 0:00:08]} 42... Kh7 {[%clk 0:00:04.9]} 43. Nh5 {[%clk 0:00:07.6]}
43... Kg6 {[%clk 0:00:04.2]} 44. Rxg7+ {[%clk 0:00:08.1]} 44... Kxh5 {[%clk
0:00:04]} 45. Bf7# {[%clk 0:00:08.3]} 1-0